bitfinex/quotes_ETHUSD_20250924
["timestamp","ask_amount","ask_price","bid_price","bid_amount"]
[1758682258928,0.792,4183.3,4179.2,0.4493]
[1758682259125,0.792,4183.1,4180.2,2.39219942]
[1758682259346,0.15056,4183.4,4181.1,0.02]
[1758682259347,0.792,4182.4,4181.1,0.02]
[1758682259619,0.792,4182.4,4180.1,0.02]
[1758682259620,0.792,4182.2,4180.1,0.02]
[1758682259789,0.792,4182.2,4180.5,2.39204945]
[1758682259989,0.792,4182.0,4180.1,0.02]
[1758682260216,3.792,4182.0,4180.1,0.02]
[1758682260419,0.7136,4181.9,4180.1,0.02]
[1758682260738,0.7136,4181.9,4179.1,0.02]
[1758682260739,3.792,4181.0,4179.1,0.02]
[1758682260915,0.792,4180.7,4179.1,0.02]
[1758682261243,0.792,4180.5,4179.1,0.02]
[1758682261535,1.82606,4180.6,4179.1,0.02]
[1758682261536,3.32,4181.0,4179.2,0.47322802]
[1758682261692,3.465,4181.0,4179.1,0.02]
[1758682261894,2.52156,4182.1,4180.0,3.0]
[1758682262102,2.52156,4182.1,4180.0,0.4493]
[1758682262332,2.381,4182.6,4180.0,3.4493]
[1758682262502,0.3750731,4182.5,4180.1,3.0]
[1758682262703,0.3750731,4182.5,4182.4,2.39097169]
[1758682262894,0.02,4182.9,4180.7,4.43]
[1758682263089,0.792,4182.4,4180.7,4.43]
[1758682263288,0.02,4181.9,4180.7,4.43]
[1758682263537,0.02,4181.9,4181.8,2.39131474]
[1758682263704,0.02,4181.9,4180.8,2.39188672]
[1758682264027,0.02,4181.9,4180.7,4.43]
[1758682264230,0.02,4181.9,4179.5,2.39261911]
[1758682264450,0.792,4181.6,4179.8,2.39245896]
[1758682264747,0.85039745,4184.4,4179.9,0.4493]
[1758682265048,0.014,4182.8,4179.9,0.4493]
[1758682265251,0.014,4182.8,4179.9,1.1423]
[1758682265704,1.823,4182.7,4180.1,2.39228726]
[1758682265893,0.02,4182.9,4180.4,11.47437434]
[1758682266099,0.02,4182.9,4179.9,0.693]
[1758682266100,0.02,4182.9,4182.8,2.39074304]
[1758682266291,0.02,4182.9,4182.8,2.86395047]
[1758682266518,0.02,4182.9,4182.0,0.4493]
[1758682266753,0.02,4182.9,4181.9,2.39125756]
[1758682267238,0.02,4182.9,4181.9,5.39125756]
[1758682267532,0.02,4184.9,4182.1,3.0]
[1758682267751,0.02,4184.9,4182.2,0.02391086]
[1758682267899,0.02,4184.9,4182.4,3.0]
[1758682268095,0.02,4184.9,4183.4,2.39040015]
[1758682268334,0.02,4184.9,4183.2,3.0]
[1758682268494,0.02,4184.9,4182.4,3.0]
[1758682268495,0.02,4184.9,4183.5,3.0]
[1758682268701,0.02,4184.9,4183.5,2.39034301]
[1758682268900,0.02,4184.9,4184.5,2.3897558]
[1758682269096,0.02,4184.9,4182.7,0.4612]
[1758682269348,3.0,4184.7,4182.7,0.4612]
[1758682269691,0.6525,4184.6,4183.4,2.39038079]
[1758682269810,0.6525,4184.6,4182.2,5.07]
[1758682270151,3.0,4184.5,4182.5,2.39091452]
[1758682270296,3.0,4184.5,4182.3,4.8872]
[1758682270497,3.0,4184.5,4182.3,4.426]
[1758682270498,0.792,4184.4,4182.3,4.426]
[1758682270697,0.792,4184.4,4182.4,2.39097169]
[1758682270999,0.792,4184.4,4182.3,4.426]
[1758682271196,5.2449,4184.3,4182.5,2.39091452]
[1758682271451,0.8219,4184.3,4182.6,0.4533]
[1758682271596,3.0,4184.4,4182.6,0.4533]
[1758682271803,3.0,4184.4,4182.4,3.0]
[1758682272097,0.792,4184.3,4182.1,0.4733]
[1758682272312,0.792,4184.3,4182.1,0.02]
[1758682272519,3.792,4184.1,4182.1,0.02]
[1758682272744,0.792,4183.9,4182.2,2.39108603]
[1758682273044,0.792,4183.7,4182.1,0.02]
[1758682273247,3.792,4183.7,4182.1,0.02]
[1758682273413,0.37500011,4183.5,4182.1,0.02]
[1758682273633,0.50171757,4184.7,4183.3,2.39040504]
[1758682273834,3.0,4184.5,4183.6,2.3902632]
[1758682274155,0.6663,4184.4,4183.9,2.39007587]
[1758682274357,0.1192,4184.1,4183.8,2.39011674]
[1758682274762,0.1192,4184.1,4183.4,0.1192]
[1758682275061,0.1192,4184.1,4183.6,2.39026772]
[1758682275370,0.1192,4184.1,4183.8,2.3901254]
[1758682275573,0.1192,4184.1,4183.4,0.1192]
[1758682275574,0.1192,4184.1,4184.0,2.39005736]
[1758682275791,0.1192,4184.1,4183.4,0.1192]
[1758682275941,0.1192,4184.1,4182.2,2.391065]
[1758682275942,0.792,4184.6,4181.8,0.4533]
[1758682276128,0.792,4184.4,4181.8,0.4533]
[1758682276331,0.792,4184.4,4183.2,2.3905049]
[1758682276640,3.703,4184.7,4183.3,0.02390457]
[1758682276641,0.792,4184.2,4183.3,0.02390457]
[1758682276838,2.614,4184.6,4183.0,0.4533]
[1758682277038,0.792,4184.4,4182.2,0.4533]
[1758682277521,0.792,4184.2,4182.1,0.02]
[1758682277725,0.001,4183.4,4182.7,2.39079124]
[1758682277923,0.001,4183.4,4182.8,2.39072008]
[1758682278327,0.001,4183.4,4182.7,0.4533]
[1758682278559,0.001,4183.4,4183.3,2.39045729]
[1758682279142,0.001,4183.4,4183.3,2.41436186]
[1758682279365,0.001,4183.4,4183.3,2.39045729]
[1758682279565,0.001,4183.4,4181.8,5.39127856]
[1758682279566,0.001,4183.4,4182.5,2.39091176]
[1758682279779,0.001,4183.4,4182.7,2.39079717]
[1758682279943,0.001,4183.4,4182.1,0.02]
[1758682280469,0.001,4183.4,4182.2,0.4533]
[1758682281082,0.001,4183.4,4182.3,2.39102885]
[1758682281286,0.001,4183.4,4183.3,2.39045729]
[1758682281981,0.001,4183.4,4179.8,1.15668935]
[1758682281982,0.001,4183.4,4182.9,2.39068371]
[1758682282183,0.001,4183.4,4182.1,0.02]
[1758682282396,0.792,4183.2,4182.1,0.02]
[1758682282560,0.792,4183.0,4182.1,0.02]
[1758682282762,0.792,4183.2,4182.1,0.02]
[1758682282763,0.792,4182.8,4182.1,0.02]
[1758682283086,1.64239745,4182.6,4182.1,0.02]
[1758682283268,0.792,4182.2,4182.1,0.02]
[1758682283474,1.29928356,4182.2,4182.1,0.02]
[1758682283788,5.14968101,4182.2,4182.1,0.02]
[1758682283985,5.60253364,4182.2,4182.1,0.02]
[1758682284298,5.60253364,4182.2,4181.1,0.02]
[1758682284299,4.97773619,4182.2,4181.1,0.02]
[1758682284449,0.792,4181.5,4181.1,0.02]
[1758682284646,1.6414835,4181.3,4181.1,0.02]
[1758682284962,1.30163729,4181.2,4181.1,0.02]
[1758682285166,2.30012354,4181.2,4181.1,0.02]
[1758682285366,0.50963729,4181.2,4181.1,2.41171509]
[1758682285913,1.30163729,4181.2,4181.1,0.02]
[1758682286137,0.9112,4181.1,4179.5,0.004]
[1758682286250,2.39257345,4179.6,4179.5,0.004]
[1758682286562,3.18480245,4179.2,4179.1,0.024]
[1758682286760,0.50963729,4179.2,4179.1,0.024]
[1758682286990,0.50963729,4179.2,4179.1,0.4773]
[1758682287155,0.50963729,4179.2,4179.1,2.8701597]
[1758682287684,0.50866452,4179.2,4179.1,2.4168597]
[1758682287885,0.50866452,4179.2,4179.1,0.024]
[1758682288185,1.30066452,4179.2,4179.1,0.024]
[1758682288349,2.66428922,4179.2,4179.1,0.024]
[1758682288681,1.8155999,4179.2,4179.1,0.024]
[1758682289681,4.20840235,4179.2,4179.1,0.024]
[1758682289882,4.8155999,4179.2,4179.1,0.024]
[1758682290085,0.50866452,4179.2,4179.1,0.024]
[1758682290309,0.50692705,4179.3,4179.1,0.024]
[1758682290450,0.50692705,4179.2,4179.1,0.024]
[1758682290646,1.29892705,4179.2,4179.1,0.024]
[1758682292060,8.18544262,4179.2,4179.1,0.024]
[1758682292430,8.92304427,4179.2,4179.1,0.024]
[1758682292792,9.05481459,4179.2,4179.1,0.024]
[1758682293356,8.92304427,4179.2,4179.1,0.024]
[1758682294178,9.05461367,4179.2,4179.1,0.024]
[1758682294375,10.75179136,4179.2,4179.1,0.024]
[1758682294576,9.05461367,4179.2,4179.1,0.024]
[1758682294965,10.75179136,4179.2,4179.1,0.024]
[1758682295165,10.75179136,4179.2,4178.1,0.02]
[1758682295166,5.3928597,4179.1,4178.1,1e-08]
[1758682295389,3.18537513,4178.2,4178.1,1e-08]
[1758682295692,11.22448099,4178.2,4178.1,1e-08]
[1758682295893,13.12963687,4178.2,4178.1,1e-08]
[1758682296211,13.12963687,4178.2,4177.1,0.02]
[1758682296212,6.18594809,4177.2,4177.1,1e-08]
[1758682296495,19.64087514,4177.2,4177.1,1e-08]
[1758682296696,22.19564696,4177.2,4177.1,1e-08]
[1758682297507,19.80169887,4177.2,4177.1,1e-08]
[1758682297679,22.19564696,4177.2,4177.1,1e-08]
[1758682298462,9.02204696,4177.2,4177.1,1e-08]
[1758682298676,13.16887514,4177.2,4177.1,1e-08]
[1758682298875,13.39447514,4177.2,4177.1,1e-08]
[1758682299374,14.65145629,4177.2,4177.1,1e-08]
[1758682299623,13.39447514,4177.2,4177.1,1e-08]
[1758682300122,0.792,4175.2,4175.1,0.02]
[1758682300323,10.58909484,4175.2,4175.1,0.02]
[1758682300533,8.194,4175.2,4175.1,0.02]
[1758682300974,8.193,4175.2,4175.1,0.4733]
[1758682301175,10.58809484,4175.2,4175.1,0.02]
[1758682302229,3.0,4175.2,4175.1,0.02]
[1758682302512,7.399,4175.2,4175.1,0.4922]
[1758682302812,4.399,4175.2,4175.1,0.4922]
[1758682302977,4.399,4175.2,4173.7,0.2368]
[1758682303322,3.792,4175.1,4172.6,0.2439]
[1758682303670,3.792,4175.1,4170.1,0.02]
[1758682303671,2.39572602,4174.1,4171.6,2.072]
[1758682303920,0.49977276,4175.1,4170.9,3.583]
[1758682303921,3.792,4173.7,4170.9,3.583]
[1758682304126,2.39621987,4173.3,4170.5,2.39779369]
[1758682304333,0.792,4173.0,4170.5,0.011]
[1758682304479,0.2424,4174.8,4172.0,0.02396931]
[1758682304790,0.2424,4174.8,4170.5,0.011]
[1758682304791,2.39607738,4173.5,4170.5,0.011]
[1758682305113,0.508,4173.4,4170.1,0.02]
[1758682305332,5.072,4173.3,4170.1,0.02]
[1758682305491,2.39630011,4173.1,4170.1,0.02]
[1758682305680,2.39757772,4170.9,4170.1,1e-08]
[1758682305876,3.0,4171.7,4169.1,0.02]
[1758682306085,0.1192,4170.8,4169.2,0.02398541]
[1758682306284,0.4573,4171.6,4169.1,0.02]
[1758682306610,0.02,4173.9,4169.4,2.39842663]
[1758682306611,2.406,4171.5,4169.4,2.39842663]
[1758682306909,0.4573,4172.3,4169.1,0.02]
[1758682306910,0.792,4172.8,4169.5,0.02398369]
[1758682307113,0.47657599,4173.5,4169.1,0.02]
[1758682307114,0.792,4171.5,4169.6,0.4722]
[1758682307275,3.792,4171.3,4169.6,0.4722]
[1758682307470,0.792,4171.1,4169.6,0.4722]
[1758682307920,0.2424,4172.1,4169.7,0.02398254]
[1758682308122,7.31407685,4172.8,4169.7,0.02398254]
[1758682308123,0.2424,4173.1,4169.8,0.4722]
[1758682308425,1.27698115,4173.9,4170.5,2.39774303]
[1758682308426,0.02,4171.9,4170.5,2.39774303]
[1758682308623,0.02,4171.9,4170.3,0.4722]
[1758682308826,0.02,4171.9,4170.4,0.02397851]
[1758682309034,0.02,4171.9,4170.5,0.4722]
[1758682309197,0.02,4171.9,4170.6,2.39773653]
[1758682309396,0.02,4171.9,4170.7,0.4722]
[1758682310722,0.02,4171.9,4171.3,2.3972843]
[1758682310910,0.28792819,4173.4,4171.4,2.89344316]
[1758682311111,0.28792819,4173.4,4172.8,2.39647239]
[1758682311337,6.5,4174.9,4171.5,3.4722]
[1758682311338,1e-08,4173.9,4173.1,2.39626959]
[1758682311644,0.005,4174.9,4173.9,2.39584082]
[1758682311847,2.073,4176.8,4173.2,0.02396242]
[1758682311848,0.011,4176.7,4174.3,0.792]
[1758682312149,6.481,4179.5,4174.6,0.792]
[1758682312351,0.02,4179.9,4178.6,2.39312767]
[1758682312646,2.736,4179.9,4178.8,2.39303149]
[1758682312848,2.736,4179.9,4177.9,0.4722]
[1758682313050,2.527,4179.0,4177.2,0.4722]
[1758682313354,1.336,4179.1,4177.2,0.4722]
[1758682313853,2.074,4179.4,4177.2,0.4722]
[1758682313854,0.4573,4179.4,4177.2,0.4389]
[1758682314011,1.801,4179.0,4177.3,0.0239389]
[1758682314214,0.02,4179.9,4173.9,0.47205059]
[1758682314215,3.0,4178.7,4175.4,0.792]
[1758682314525,3.0,4178.7,4174.7,6.48]
[1758682314526,4.316,4178.6,4175.1,0.02]
[1758682314719,2.39326057,4178.4,4176.1,0.02]
[1758682314919,0.62224194,4178.3,4176.1,0.02]
[1758682315134,3.0,4178.4,4176.1,0.02]
[1758682315135,0.62224194,4178.2,4176.1,0.02]
[1758682315334,0.36222419,4178.1,4176.1,0.02]
[1758682315512,0.36222419,4178.1,4176.2,2.39452133]
[1758682315709,0.36222419,4178.1,4176.1,0.02]
[1758682315710,0.62224194,4178.4,4176.3,0.02394463]
[1758682315914,3.0,4177.9,4176.4,0.4722]
[1758682316116,3.50263849,4177.9,4176.1,0.02]
[1758682316435,0.6997,4177.8,4176.1,0.02]
[1758682316636,0.1192,4176.4,4176.1,0.02]
[1758682317148,0.1192,4176.7,4176.1,0.02]
[1758682317653,0.75592,4176.7,4176.1,0.02]
[1758682317952,0.1192,4176.3,4176.1,0.02]
[1758682319377,0.792,4176.2,4176.1,0.02]
[1758682319580,8.223,4176.2,4176.1,0.02]
[1758682319760,3.0,4176.2,4176.1,0.02]
[1758682320336,0.1192,4176.3,4176.1,0.02]
[1758682320536,0.1192,4176.6,4176.1,0.02]
[1758682320733,4.431,4176.7,4176.1,0.02]
[1758682320734,3.18652133,4176.2,4176.1,0.02]
[1758682320939,6.18652133,4176.2,4176.1,0.02]
[1758682321235,4.53807145,4176.2,4176.1,0.02]
[1758682321465,4.99537145,4176.2,4176.1,0.02]
[1758682321842,5.8304483,4176.2,4176.1,0.02]
[1758682322047,15.48021458,4176.2,4176.1,0.02]
[1758682322294,14.64513773,4176.2,4176.1,0.02]
[1758682322575,14.64513773,4176.2,4175.1,0.02]
[1758682322576,2.39480309,4175.8,4175.1,0.02]
[1758682322773,1.42205198,4175.2,4175.1,0.02]
[1758682322976,0.50367145,4175.2,4175.1,0.02]
[1758682323179,0.63008476,4175.9,4175.1,0.02]
[1758682323398,4.93167145,4175.8,4175.1,0.02]
[1758682323594,0.50367145,4175.8,4175.1,0.02]
[1758682323753,4.427,4175.8,4175.2,0.02395094]
[1758682323954,0.50367145,4176.2,4175.3,0.49615037]
[1758682324168,0.84006931,4177.0,4175.3,0.49615037]
[1758682324169,0.37564555,4176.8,4175.3,0.49615037]
[1758682324488,0.37564555,4176.8,4175.8,2.39472649]
[1758682324802,0.37564555,4176.8,4175.9,0.49614693]
[1758682325003,0.50469419,4177.2,4176.7,2.39422454]
[1758682325305,0.3755357,4177.3,4176.5,0.02394349]
[1758682325497,0.3755357,4177.3,4176.6,2.394292]
[1758682325641,0.50473286,4177.4,4176.7,0.49614234]
[1758682325978,0.02,4177.9,4177.2,2.39390309]
[1758682326142,0.02,4177.9,4177.3,0.0239389]
[1758682326340,0.02,4177.9,4177.4,2.39383348]
[1758682326645,0.02,4177.9,4177.5,2.88990552]
[1758682326840,0.02,4177.9,4177.6,2.39366577]
[1758682327056,0.02,4177.9,4177.0,2.39401388]
[1758682327255,0.02,4177.9,4176.8,0.4722]
[1758682327468,0.02,4177.9,4176.9,0.0239412]
[1758682327691,0.02,4177.9,4177.0,0.4722]
[1758682327846,0.02,4177.9,4177.1,0.02394005]
[1758682328045,0.812,4177.9,4176.3,0.4656]
[1758682328249,0.02,4177.9,4177.1,2.39397643]
[1758682328489,0.02,4177.9,4177.2,0.02393948]
[1758682328801,0.37544818,4178.4,4178.3,2.39331785]
[1758682328948,0.37544818,4178.4,4178.3,2.85891785]
[1758682329141,0.02,4178.9,4178.3,2.85891785]
[1758682329456,0.02,4178.9,4178.3,0.4656]
[1758682329658,0.02,4178.9,4178.8,2.39303149]
[1758682329853,0.02,4178.9,4178.4,0.0239326]
[1758682330104,0.02,4178.9,4178.5,0.4656]
[1758682330282,0.02,4178.9,4178.6,0.4656]
[1758682330480,0.02,4178.9,4177.2,0.4656]
[1758682330651,0.02,4178.9,4177.3,6.157]
[1758682330845,0.02,4178.9,4177.7,2.39364774]
[1758682331072,0.02,4178.9,4177.2,0.4656]
[1758682331382,0.1192,4178.0,4177.3,0.1192]
[1758682332102,0.1192,4177.3,4176.7,0.1192]
[1758682332390,2.70208476,4178.6,4176.8,0.48494177]
[1758682332707,7.418,4178.5,4176.8,0.461]
[1758682332849,0.792,4178.4,4176.8,0.461]
[1758682333189,0.792,4178.4,4177.0,2.39406272]
[1758682333349,0.792,4178.4,4177.1,2.39399239]
[1758682333544,0.792,4178.4,4176.8,0.461]
[1758682333867,0.026973,4177.1,4176.2,0.461]
[1758682334076,0.026973,4177.1,4176.4,2.39438746]
[1758682334278,0.026973,4177.1,4176.2,0.461]
[1758682334889,0.026973,4177.1,4176.5,2.39433906]
[1758682335180,0.026973,4177.1,4176.6,2.39428773]
[1758682335985,0.026973,4177.1,4176.1,0.02]
[1758682336579,0.026973,4177.1,4176.6,2.39424154]
[1758682336778,0.026973,4177.1,4176.7,0.461]
[1758682336979,0.026973,4177.1,4176.1,0.481]
[1758682338159,0.50514204,4177.0,4176.1,0.481]
[1758682338451,0.50514204,4176.9,4176.1,0.481]
[1758682338652,0.026973,4177.1,4176.1,0.481]
[1758682338653,0.50514204,4176.8,4176.1,0.481]
[1758682338977,0.026973,4177.1,4176.1,2.8755773]
[1758682339177,0.026973,4177.1,4176.1,0.481]
[1758682339178,0.50640002,4177.0,4176.1,0.481]
[1758682339378,0.50640002,4176.9,4176.3,2.39444666]
[1758682339690,0.50640002,4176.8,4176.1,0.02]
[1758682339888,0.50640002,4176.7,4176.1,0.02]
[1758682340107,0.792,4176.4,4176.1,0.02]
[1758682340402,2.27931781,4176.3,4176.1,0.02]
[1758682340554,1.34646933,4176.2,4176.1,0.02]
[1758682340753,0.792,4176.1,4174.6,0.004]
[1758682340976,1.34646933,4176.2,4174.1,0.02]
[1758682340977,0.792,4174.7,4174.1,0.02]
[1758682341178,5.46797487,4174.5,4172.5,0.461]
[1758682341382,0.63629589,4173.5,4172.5,0.461]
[1758682341572,0.50640002,4173.4,4173.0,2.39630996]
[1758682341778,0.50640002,4173.3,4172.5,0.461]
[1758682341989,0.50849117,4173.2,4172.8,2.39641786]
[1758682342189,0.50849117,4173.2,4173.1,2.41630011]
[1758682342355,0.1192,4173.3,4173.2,2.39622212]
[1758682342549,0.1192,4173.3,4173.1,0.02]
[1758682342550,0.62716567,4173.3,4173.1,0.02]
[1758682342796,0.1192,4173.3,4173.1,0.02]
[1758682343357,0.1192,4173.3,4173.1,2.41629452]
[1758682343556,0.1192,4173.3,4173.2,2.39624269]
[1758682343960,0.1192,4173.3,4173.1,0.02]
[1758682344357,0.50773997,4173.7,4173.3,2.39618527]
[1758682344658,0.1192,4173.7,4173.2,2.39624269]
[1758682344863,0.1192,4173.7,4173.1,0.02]
[1758682345303,0.792,4174.5,4173.1,0.02]
[1758682345304,2.073,4174.8,4174.2,2.39566863]
[1758682345496,2.073,4174.8,4173.2,0.48496242]
[1758682345497,3.0,4174.2,4174.1,2.39571307]
[1758682345700,3.0,4174.2,4174.0,2.39576117]
[1758682345856,0.63629589,4175.3,4173.1,0.02]
[1758682346205,6.6962551,4175.2,4173.2,0.461]
[1758682346389,6.476,4175.2,4174.4,2.39551441]
[1758682346570,0.72769135,4175.1,4173.3,0.461]
[1758682346894,0.792,4174.9,4173.4,2.39612785]
[1758682347098,0.792,4174.7,4173.6,2.39600722]
[1758682347281,0.22022461,4174.6,4173.6,2.39600429]
[1758682347600,3.0,4174.4,4173.3,0.461]
[1758682347798,0.50746674,4175.0,4173.3,0.461]
[1758682347799,0.63629589,4175.2,4173.4,0.02396127]
[1758682348019,1.947,4175.1,4173.5,2.85707044]
[1758682348174,1.947,4175.1,4174.7,2.39537603]
[1758682348944,1.947,4175.1,4174.4,2.39554561]
[1758682348945,1.947,4175.1,4174.2,0.461]
[1758682349079,0.43599328,4175.0,4173.7,2.39595562]
[1758682349404,0.792,4174.9,4173.6,0.461]
[1758682349578,0.792,4174.9,4173.1,0.02]
[1758682349579,0.792,4174.9,4173.9,2.39583835]
[1758682349905,0.792,4174.9,4173.2,2.39624269]
[1758682350061,0.792,4174.7,4174.0,2.39574964]
[1758682350265,0.792,4174.7,4173.2,2.39624269]
[1758682351106,0.792,4174.7,4173.1,0.02]
[1758682351107,1.2458,4174.7,4173.1,0.02]
[1758682351415,0.22004798,4174.6,4173.1,0.481]
[1758682351567,1.857,4174.9,4174.4,2.39554722]
[1758682351767,1.857,4174.9,4174.3,2.39560776]
[1758682352098,4.393,4175.2,4174.8,2.3953013]
[1758682352300,0.02,4175.9,4174.6,0.02395439]
[1758682352602,4.392,4175.5,4174.8,2.8563199]
[1758682352761,4.392,4175.5,4174.9,2.39526695]
[1758682352965,3.0,4175.4,4174.1,0.004]
[1758682353166,0.792,4175.3,4174.5,2.39544467]
[1758682353367,4.389,4175.4,4175.3,2.39503748]
[1758682353574,0.812,4175.9,4174.4,0.461]
[1758682353575,0.812,4175.9,4175.4,2.39495521]
[1758682353803,0.812,4175.9,4174.3,2.39558578]
[1758682353804,0.02,4175.9,4174.2,2.39566863]
[1758682353964,0.02,4175.9,4174.1,0.004]
[1758682353965,0.02,4175.9,4174.8,0.461]
[1758682354165,0.02,4175.9,4175.8,2.3947507]
[1758682354566,1e-08,4175.9,4175.8,2.8557507]
[1758682354800,0.02,4176.9,4175.9,2.39469335]
[1758682354984,0.02,4176.9,4176.1,2.39457867]
[1758682355187,0.02,4176.9,4176.6,2.51346343]
[1758682355513,1e-08,4176.9,4176.8,2.39417736]
[1758682355979,1e-08,4176.9,4176.8,2.85517736]
[1758682356186,1e-08,4176.9,4176.8,2.39417736]
[1758682356502,1e-08,4176.9,4176.8,2.85517736]
[1758682356882,1e-08,4176.9,4176.8,2.39417736]
[1758682357085,0.37546612,4178.6,4176.8,2.39417736]
[1758682357086,0.63414089,4178.9,4177.5,0.792]
[1758682357396,0.001,4179.4,4177.8,3.0]
[1758682357714,0.001,4179.4,4179.3,2.39274519]
[1758682358014,0.001,4179.4,4179.1,2.39283626]
[1758682358173,0.001,4179.4,4179.3,2.39274519]
[1758682359692,0.001,4179.4,4178.8,2.39299646]
[1758682359693,0.001,4179.4,4178.7,0.461]
[1758682360400,0.001,4179.4,4179.3,2.39274519]
[1758682360591,0.001,4179.4,4179.3,2.41667264]
[1758682361106,0.001,4179.4,4179.1,2.39285192]
[1758682361417,0.001,4179.4,4177.3,2.39385943]
[1758682361418,0.001,4179.4,4178.1,0.461]
[1758682361617,0.001,4179.4,4179.0,2.39286907]
[1758682361823,0.001,4179.4,4179.1,2.39281718]
[1758682361985,0.001,4179.4,4178.7,2.39306919]
[1758682362185,0.001,4179.4,4178.1,0.461]
[1758682362512,0.001,4179.4,4179.1,2.39283388]
[1758682362687,0.001,4179.4,4179.3,2.39274519]
[1758682363185,0.001,4179.4,4179.3,2.82454519]
[1758682364126,0.001,4179.4,4179.3,5.89254519]
[1758682364285,1e-08,4179.9,4179.6,2.39254467]
[1758682364485,1e-08,4180.9,4179.7,3.02392516]
[1758682364762,1e-08,4180.9,4180.3,2.39212956]
[1758682364890,1e-08,4180.9,4180.6,2.3919737]
[1758682365084,1e-08,4180.9,4180.8,2.39188672]
[1758682365421,1e-08,4180.9,4180.8,2.41580558]
[1758682365623,1e-08,4180.9,4180.8,6.03480558]
[1758682365936,1e-08,4180.9,4180.8,6.01088672]
[1758682367028,1e-08,4180.9,4179.7,0.068]
[1758682367190,1e-08,4180.9,4180.7,0.4318]
[1758682367384,1e-08,4180.9,4180.8,2.41580558]
[1758682367821,1e-08,4180.9,4180.8,2.84760558]
[1758682368227,1e-08,4180.9,4180.8,2.39188672]
[1758682369094,1e-08,4180.9,4180.6,2.39200114]
[1758682369289,1e-08,4180.9,4180.8,2.39188672]
[1758682369933,1e-08,4180.9,4180.4,1.632]
[1758682370226,1e-08,4180.9,4179.9,4.366]
[1758682370227,0.232,4180.8,4179.9,4.366]
[1758682370409,0.232,4180.8,4180.7,2.39194393]
[1758682371042,1e-08,4180.9,4179.7,4.367]
[1758682371043,1e-08,4180.9,4179.8,0.02392458]
[1758682371185,1e-08,4180.9,4180.8,2.39188672]
[1758682372033,1e-08,4180.9,4180.8,2.85160558]
[1758682372192,1e-08,4180.9,4180.8,2.39588672]
[1758682372391,0.00100001,4180.9,4180.8,2.39588672]
[1758682373000,0.00100001,4180.9,4180.8,2.82768672]
[1758682373526,0.00100001,4180.9,4180.8,2.85160558]
[1758682373891,0.4637,4183.7,4180.8,8.06841886]
[1758682374131,2.07,4183.6,4180.9,10.1455]
[1758682374316,0.4637,4183.7,4183.3,2.39045729]
[1758682374515,0.4637,4183.7,4182.9,2.3906589]
[1758682374696,0.4637,4183.7,4182.3,4.366]
[1758682375097,3.4637,4183.3,4181.0,3.6745]
[1758682375324,0.792,4183.1,4181.4,3.0]
[1758682375526,0.792,4182.9,4181.2,3.0]
[1758682375858,0.792,4182.9,4181.7,2.39136828]
[1758682376015,0.792,4182.9,4181.1,4.364]
[1758682376209,0.792,4182.9,4181.5,2.3914818]
[1758682376413,0.12557,4182.8,4181.3,2.39154722]
[1758682376710,0.12557,4182.8,4181.1,4.384]
[1758682377146,0.1192,4182.4,4181.8,2.39130782]
[1758682377356,0.1192,4182.4,4181.7,0.1192]
[1758682377909,2.51017602,4182.4,4181.7,0.1192]
[1758682378145,0.2973876,4182.3,4181.1,4.384]
[1758682378313,0.1192,4182.0,4181.3,0.1192]
[1758682378517,0.1192,4182.0,4181.6,2.3914269]
[1758682378728,0.1192,4182.0,4181.3,0.1192]
[1758682380324,0.1192,4182.0,4181.4,2.84725893]
[1758682380527,0.1192,4182.5,4181.8,0.1192]
[1758682380846,0.4647,4183.4,4181.9,2.53436473]
[1758682380847,0.1192,4182.8,4181.9,2.53436473]
[1758682381054,0.1192,4182.8,4182.3,0.1192]
[1758682381362,0.001,4183.4,4182.4,0.02390971]
[1758682381559,0.1192,4183.3,4182.4,4.37190971]
[1758682381861,0.001,4183.4,4182.4,4.37190971]
[1758682381862,0.001,4183.4,4183.0,0.1192]
[1758682382012,0.001,4183.4,4183.1,0.02390571]
[1758682382337,0.001,4183.4,4182.5,3.4318]
[1758682382338,0.001,4183.4,4183.2,0.1192]
[1758682382539,0.001,4183.4,4181.8,0.4318]
[1758682382760,0.001,4183.4,4181.9,4.347]
[1758682382925,0.001,4183.4,4182.3,0.4318]
[1758682383518,0.001,4183.4,4182.8,2.39070185]
[1758682383827,0.001,4183.4,4183.1,2.39054566]
[1758682384028,0.021,4183.9,4183.2,0.02390514]
[1758682384259,0.021,4183.9,4183.4,5.39040015]
[1758682384427,0.021,4183.9,4183.8,2.39017161]
[1758682384630,0.021,4183.9,4183.8,9.74217161]
[1758682384835,0.021,4183.9,4183.8,10.17397161]
[1758682385532,0.7167,4183.9,4182.6,4.352]
[1758682385718,0.21547905,4183.8,4182.6,4.352]
[1758682385919,0.21547905,4183.7,4182.6,4.352]
[1758682386145,0.54771752,4183.6,4182.6,4.352]
[1758682386347,0.21548564,4183.5,4182.6,4.352]
[1758682386554,0.21570885,4183.4,4182.6,4.352]
[1758682386756,2.39034301,4183.5,4182.6,4.352]
[1758682386969,0.792,4183.3,4181.8,2.069]